fUSD/lending_fUSD_20240718
["ID","MTS","AMOUNT","RATE_DAILY","PERIOD"]
[332525478,1721288030964,-500.0,0.00024383,2]
[332525479,1721288030974,-500.0,0.00024383,2]
[332525480,1721288030983,-500.0,0.00024383,2]
[332525481,1721288030993,-502.78200747,0.00024383,2]
[332525482,1721288031002,-598.10490361,0.00024383,2]
[332525483,1721288031016,-1146.78,0.00024383,2]
[332525484,1721288031025,-500.0,0.00024383,2]
[332525485,1721288031035,-500.0,0.00024383,2]
[332525486,1721288031045,-500.0,0.00024383,2]
[332525487,1721288031055,-225.18122642,0.00024383,2]
[332525488,1721288031064,-505.84292833,0.00024383,2]
[332525489,1721288031074,-500.0,0.00024383,2]
[332525490,1721288031083,-755.65,0.00024383,2]
[332525491,1721288031093,-504.09257664,0.00024383,2]
[332525492,1721288031229,-1117.53,0.00024383,2]
[332525493,1721288031238,-1014.34,0.00024383,2]
[332525494,1721288031253,-505.34571146,0.00024383,2]
[332525495,1721288031262,-500.0,0.00024383,2]
[332525496,1721288031271,-500.0,0.00024383,2]
[332525497,1721288031281,-497.27019895,0.00024383,2]
[332525498,1721288031290,-503.00689023,0.00024383,2]
[332525499,1721288031299,-500.0,0.00024383,2]
[332525500,1721288031310,-500.0,0.00024383,2]
[332525501,1721288031321,-203.68780539,0.00024383,2]
[332525502,1721288031333,-502.28503859,0.00024383,2]
[332525503,1721288031343,-500.0,0.00024383,2]
[332525504,1721288031355,-500.0,0.00024383,2]
[332525505,1721288031366,-502.62787682,0.00024383,2]
[332525506,1721288031377,-500.0,0.00024383,2]
[332525507,1721288031386,-926.9,0.00024383,2]
[332525508,1721288031396,-500.0,0.00024383,2]
[332525509,1721288031408,-500.0,0.00024383,2]
[332525510,1721288031419,-500.0,0.00024383,2]
[332525511,1721288031430,-559.52,0.00024383,2]
[332525512,1721288031440,-1202.57,0.00024383,2]
[332525513,1721288031450,-500.0,0.00024383,2]
[332525514,1721288031461,-500.0,0.00024383,2]
[332525515,1721288031472,-686.6,0.00024383,2]
[332525516,1721288031481,-500.0,0.00024383,2]
[332525517,1721288031491,-500.0,0.00024383,2]
[332525518,1721288031501,-500.0,0.00024383,2]
[332525519,1721288031512,-698.02,0.00024383,2]
[332525520,1721288031521,-500.0,0.00024383,2]
[332525521,1721288031530,-500.0,0.00024383,2]
[332525522,1721288031539,-568.02,0.00024383,2]
[332525523,1721288031548,-500.0,0.00024383,2]
[332525524,1721288031557,-500.0,0.00024383,2]
[332525525,1721288031567,-209.68383002,0.00024383,2]
[332525526,1721288031576,-500.0,0.00024383,2]
[332525527,1721288031586,-500.0,0.00024383,2]
[332525528,1721288031595,-506.5,0.00024383,2]
[332525529,1721288031604,-579.89,0.00024383,2]
[332525530,1721288031613,-507.46624603,0.00024383,2]
[332525531,1721288031624,-888.04,0.00024383,2]
[332525532,1721288031633,-877.77,0.00024383,2]
[332525533,1721288031643,-507.14659388,0.00024383,2]
[332525534,1721288031657,-500.0,0.00024383,2]
[332525535,1721288031666,-337.52775709,0.00024383,2]
[332525536,1721288031675,-500.0,0.00024383,2]
[332525537,1721288031684,-500.0,0.00024383,2]
[332525538,1721288031694,-500.0,0.00024383,2]
[332525539,1721288031703,-500.0,0.00024383,2]
[332525540,1721288031713,-689.95,0.00024383,2]
[332525541,1721288031723,-500.0,0.00024383,2]
[332525542,1721288031734,-519.07626291,0.00024383,2]
[332525543,1721288031744,-887.13,0.00024383,2]
[332525544,1721288031752,-512.75,0.00024383,2]
[332525545,1721288031761,-500.0,0.00024383,2]
[332525546,1721288031770,-502.53100138,0.00024383,2]
[332525547,1721288031779,-500.0,0.00024383,2]
[332525548,1721288031788,-504.3292524,0.00024383,2]
[332525549,1721288031798,-500.0,0.00024383,2]
[332525550,1721288031807,-500.0,0.00024383,2]
[332525551,1721288031816,-504.44409168,0.00024383,2]
[332525552,1721288031826,-591.3695665,0.00024383,2]
[332525553,1721288031836,-524.72635854,0.00024383,2]
[332525554,1721288031847,-918.48,0.00024383,2]
[332525555,1721288031857,-500.0,0.00024383,2]
[332525556,1721288031868,-500.0,0.00024383,2]
[332525557,1721288031877,-500.0,0.00024383,2]
[332525558,1721288031887,-500.0,0.00024383,2]
[332525559,1721288031896,-1130.16,0.00024383,2]
[332525560,1721288031906,-500.0,0.00024383,2]
[332525561,1721288031916,-500.0,0.00024383,2]
[332525562,1721288031926,-1018.39,0.00024383,2]
[332525563,1721288031935,-505.76286586,0.00024383,2]
[332525564,1721288031945,-500.0,0.00024383,2]
[332525565,1721288031955,-283.51418399,0.00024383,2]
[332525566,1721288031964,-500.0,0.00024383,2]
[332525567,1721288031974,-500.0,0.00024383,2]
[332525568,1721288031983,-582.9,0.00024383,2]
[332525569,1721288031993,-500.0,0.00024383,2]
[332525570,1721288032002,-500.0,0.00024383,2]
[332525571,1721288032011,-500.0,0.00024383,2]
[332525572,1721288032020,-500.0,0.00024383,2]
[332525573,1721288032030,-500.0,0.00024383,2]
[332525574,1721288032040,-488.99137481,0.00024383,2]
[332525575,1721288032049,-629.0,0.00024383,2]
[332525576,1721288032059,-500.0,0.00024383,2]
[332525577,1721288032070,-682.95,0.00024383,2]
[332525578,1721288032079,-1036.97,0.00024383,2]
[332525579,1721288032088,-500.0,0.00024383,2]
[332525580,1721288032100,-504.76541522,0.00024383,2]
[332525581,1721288032115,-500.0,0.00024383,2]
[332525582,1721288032126,-500.0,0.00024383,2]
[332525583,1721288032136,-500.0,0.00024383,2]
[332525584,1721288032145,-500.0,0.00024383,2]
[332525585,1721288032155,-688.35,0.00024383,2]
[332525586,1721288032164,-500.0,0.00024383,2]
[332525587,1721288032174,-500.0,0.00024383,2]
[332525588,1721288032184,-851.26,0.00024383,2]
[332525589,1721288032193,-515.2988309,0.00024383,2]
[332525590,1721288032202,-1046.3,0.00024383,2]
[332525591,1721288032211,-500.0,0.00024383,2]
[332525592,1721288032220,-988.22,0.00024383,2]
[332525593,1721288032229,-500.0,0.00024383,2]
[332525594,1721288032239,-500.0,0.00024383,2]
[332525595,1721288032250,-500.0,0.00024383,2]
[332525596,1721288032259,-500.0,0.00024383,2]
[332525597,1721288032271,-864.94,0.00024383,2]
[332525598,1721288032282,-504.25571601,0.00024383,2]
[332525599,1721288032291,-704.02,0.00024383,2]
[332525600,1721288032301,-500.0,0.00024383,2]
[332525601,1721288032312,-500.0,0.00024383,2]
[332525602,1721288032322,-791.51,0.00024383,2]
[332525603,1721288032332,-500.0,0.00024383,2]
[332525604,1721288032342,-637.96,0.00024383,2]
[332525605,1721288032352,-645.57,0.00024383,2]
[332525606,1721288032362,-520.34485259,0.00024383,2]
[332525607,1721288032371,-500.0,0.00024383,2]
[332525608,1721288032381,-500.0,0.00024383,2]
[332525609,1721288032390,-632.83,0.00024383,2]
[332525610,1721288032399,-654.28,0.00024383,2]
[332525611,1721288032409,-673.07,0.00024383,2]
[332525612,1721288032418,-616.18,0.00024383,2]
[332525613,1721288032428,-533.28,0.00024383,2]
[332525614,1721288032438,-500.0,0.00024383,2]
[332525615,1721288032447,-530.94,0.00024383,2]
[332525616,1721288032458,-527.98,0.00024383,2]
[332525617,1721288032466,-500.0,0.00024383,2]
[332525618,1721288032476,-547.08,0.00024383,2]
[332525619,1721288032487,-523.45061547,0.00024383,2]
[332525620,1721288032496,-559.75,0.00024383,2]
[332525621,1721288032507,-500.0,0.00024383,2]
[332525622,1721288032517,-500.0,0.00024383,2]
[332525623,1721288032527,-500.0,0.00024383,2]
[332525624,1721288032539,-500.0,0.00024383,2]
[332525625,1721288032550,-557.05741787,0.00024383,2]
[332525626,1721288032561,-500.0,0.00024383,2]
[332525627,1721288032572,-500.0,0.00024383,2]
[332525628,1721288032581,-506.42177902,0.00024383,2]
[332525629,1721288032592,-500.0,0.00024383,2]
[332525630,1721288032602,-500.0,0.00024383,2]
[332525631,1721288032611,-753.22,0.00024383,2]
[332525632,1721288032620,-611.76,0.00024383,2]
[332525633,1721288032629,-1173.23,0.00024383,2]
[332525634,1721288032639,-500.0,0.00024383,2]
[332525635,1721288032652,-709.13,0.00024383,2]
[332525636,1721288032661,-341.56287483,0.00024383,2]
[332525637,1721288032671,-500.0,0.00024383,2]
[332525638,1721288032680,-500.0,0.00024383,2]
[332525639,1721288032690,-500.0,0.00024383,2]
[332525640,1721288032701,-571.73,0.00024383,2]
[332525641,1721288032711,-536.07277287,0.00024383,2]
[332525642,1721288032724,-500.0,0.00024383,2]
[332525643,1721288032738,-502.34576151,0.00024383,2]
[332525644,1721288032747,-500.0,0.00024383,2]
[332525645,1721288032758,-500.0,0.00024383,2]
[332525646,1721288032768,-500.0,0.00024383,2]
[332525647,1721288032778,-771.42,0.00024383,2]
[332525648,1721288032787,-393.7,0.00024383,2]
[332525649,1721288032796,-679.34,0.00024383,2]
[332525650,1721288032806,-500.0,0.00024383,2]
[332525651,1721288032815,-500.0,0.00024383,2]
[332525652,1721288032825,-500.0,0.00024383,2]
[332525653,1721288032835,-500.0,0.00024383,2]
[332525654,1721288032844,-500.0,0.00024383,2]
[332525655,1721288032854,-500.0,0.00024383,2]
[332525656,1721288032863,-500.0,0.00024383,2]
[332525657,1721288032873,-1055.96,0.00024383,2]
[332525658,1721288032883,-500.0,0.00024383,2]
[332525659,1721288032892,-500.0,0.00024383,2]
[332525660,1721288032901,-500.0,0.00024383,2]
[332525661,1721288032911,-500.0,0.00024383,2]
[332525662,1721288032920,-756.04,0.00024383,2]
[332525663,1721288032930,-703.28,0.00024383,2]
[332525664,1721288032940,-750.7,0.00024383,2]
[332525665,1721288032950,-500.0,0.00024383,2]
[332525666,1721288032959,-500.0,0.00024383,2]
[332525667,1721288032968,-500.0,0.00024383,2]
[332525668,1721288032978,-500.0,0.00024383,2]
[332525669,1721288032987,-500.0,0.00024383,2]
[332525670,1721288032997,-500.0,0.00024383,2]
[332525671,1721288033006,-1168.54,0.00024383,2]
[332525672,1721288033016,-500.0,0.00024383,2]
[332525673,1721288033025,-500.0,0.00024383,2]
[332525674,1721288033034,-500.0,0.00024383,2]
[332525675,1721288033044,-478.67427873,0.00024383,2]
[332525676,1721288033053,-500.0,0.00024383,2]
[332525677,1721288033061,-500.0,0.00024383,2]
[332525678,1721288033071,-509.55902205,0.00024383,2]
[332525679,1721288033080,-1538.77,0.00024383,2]
[332525680,1721288033090,-926.42,0.00024383,2]
[332525681,1721288033099,-1335.62,0.00024383,2]
[332525682,1721288033109,-1229.0,0.00024383,2]
[332525683,1721288033118,-500.0,0.00024383,2]
[332525684,1721288033127,-500.0,0.00024383,2]
[332525685,1721288033136,-477.98146841,0.00024383,2]
[332525686,1721288033146,-500.0,0.00024383,2]
[332525687,1721288033155,-500.0,0.00024383,2]
[332525688,1721288033164,-500.0,0.00024383,2]
[332525689,1721288033174,-984.25,0.00024383,2]
[332525690,1721288033183,-500.0,0.00024383,2]
[332525691,1721288033192,-500.0,0.00024383,2]
[332525692,1721288033201,-1387.55,0.00024383,2]
[332525693,1721288033211,-500.0,0.00024383,2]
[332525694,1721288033220,-500.0,0.00024383,2]
[332525695,1721288033231,-500.0,0.00024383,2]
[332525696,1721288033240,-501.65401384,0.00024383,2]
[332525697,1721288033251,-500.0,0.00024383,2]
[332525698,1721288033260,-925.35,0.00024383,2]
[332525699,1721288033270,-500.0,0.00024383,2]
[332525700,1721288033280,-542.52,0.00024383,2]
[332525701,1721288033290,-500.0,0.00024383,2]
[332525702,1721288033300,-500.0,0.00024383,2]
[332525703,1721288033310,-500.0,0.00024383,2]
[332525704,1721288033319,-500.0,0.00024383,2]
[332525705,1721288033329,-500.0,0.00024383,2]
[332525706,1721288033338,-500.0,0.00024383,2]
[332525707,1721288033348,-500.0,0.00024383,2]
[332525708,1721288033357,-542.08,0.00024383,2]
[332525709,1721288033366,-1699.26,0.00024383,2]
[332525710,1721288033376,-500.0,0.00024383,2]
[332525711,1721288033385,-560.08,0.00024383,2]
[332525712,1721288033394,-500.0,0.00024383,2]
[332525713,1721288033403,-500.0,0.00024383,2]
[332525714,1721288033412,-500.0,0.00024383,2]
[332525715,1721288033421,-500.0,0.00024383,2]
[332525716,1721288033431,-500.0,0.00024383,2]
[332525717,1721288033440,-500.0,0.00024383,2]
[332525718,1721288033450,-500.0,0.00024383,2]
[332525719,1721288033460,-500.0,0.00024383,2]
[332525720,1721288033469,-500.0,0.00024383,2]
[332525721,1721288033479,-500.0,0.00024383,2]
[332525722,1721288033490,-500.0,0.00024383,2]
[332525723,1721288033500,-1355.83,0.00024383,2]
[332525724,1721288033509,-505.95,0.00024383,2]
[332525725,1721288033519,-500.0,0.00024383,2]
[332525726,1721288033528,-500.0,0.00024383,2]
[332525727,1721288033538,-500.0,0.00024383,2]
[332525728,1721288033548,-500.0,0.00024383,2]
[332525729,1721288033559,-628.74,0.00024383,2]
[332525730,1721288033570,-310.2306355,0.00024383,2]
[332525731,1721288033580,-500.0,0.00024383,2]
[332525732,1721288033590,-500.0,0.00024383,2]
[332525733,1721288033600,-676.4,0.00024383,2]
[332525734,1721288033613,-538.06,0.00024383,2]
[332525735,1721288033622,-500.0,0.00024383,2]
[332525736,1721288033634,-500.0,0.00024383,2]
[332525737,1721288033647,-500.0,0.00024383,2]
[332525738,1721288033658,-500.0,0.00024383,2]
[332525739,1721288033667,-1065.58,0.00024383,2]
[332525740,1721288033676,-500.0,0.00024383,2]
[332525741,1721288033686,-500.0,0.00024383,2]
[332525742,1721288033695,-500.0,0.00024383,2]
[332525743,1721288033704,-500.0,0.00024383,2]
[332525744,1721288033714,-872.67,0.00024383,2]
[332525745,1721288033726,-500.0,0.00024383,2]
[332525746,1721288033736,-1348.92,0.00024383,2]
[332525747,1721288033745,-500.0,0.00024383,2]
[332525748,1721288033755,-406.46776367,0.00024383,2]
[332525749,1721288033766,-838.7,0.00024383,2]
[332525750,1721288033775,-500.0,0.00024383,2]
[332525751,1721288033785,-500.0,0.00024383,2]
[332525752,1721288033795,-500.0,0.00024383,2]
[332525753,1721288033805,-503.03,0.00024383,2]
[332525754,1721288033814,-500.0,0.00024383,2]
[332525755,1721288033825,-500.0,0.00024383,2]
[332525756,1721288033836,-500.0,0.00024383,2]
[332525757,1721288033847,-500.0,0.00024383,2]
[332525758,1721288033858,-500.0,0.00024383,2]
[332525759,1721288033868,-500.0,0.00024383,2]
[332525760,1721288033877,-500.0,0.00024383,2]
[332525761,1721288033887,-802.6,0.00024383,2]
[332525762,1721288033897,-500.0,0.00024383,2]
[332525763,1721288033907,-579.37,0.00024383,2]
[332525764,1721288033916,-780.83,0.00024383,2]
[332525765,1721288033926,-500.0,0.00024383,2]
[332525766,1721288033936,-781.35,0.00024383,2]
[332525767,1721288033945,-724.1,0.00024383,2]
[332525768,1721288033955,-500.0,0.00024383,2]
[332525769,1721288033965,-500.0,0.00024383,2]
[332525770,1721288033976,-500.0,0.00024383,2]
[332525771,1721288033986,-568.82,0.00024383,2]
[332525772,1721288033996,-1287.42,0.00024383,2]
[332525773,1721288034005,-500.0,0.00024383,2]
[332525774,1721288034015,-500.0,0.00024383,2]
[332525775,1721288034025,-500.0,0.00024383,2]
[332525776,1721288034036,-494.69725991,0.00024383,2]
[332525777,1721288034047,-771.73,0.00024383,2]
[332525778,1721288034056,-1353.92,0.00024383,2]
[332525779,1721288034067,-1387.82,0.00024383,2]
[332525780,1721288034078,-500.0,0.00024383,2]
[332525781,1721288034089,-500.0,0.00024383,2]
[332525782,1721288034099,-553.81,0.00024383,2]
[332525783,1721288034108,-500.0,0.00024383,2]
[332525784,1721288034117,-500.0,0.00024383,2]
[332525785,1721288034127,-500.0,0.00024383,2]
[332525786,1721288034137,-500.0,0.00024383,2]
[332525787,1721288034146,-500.0,0.00024383,2]
[332525788,1721288034157,-500.0,0.00024383,2]
[332525789,1721288034167,-500.0,0.00024383,2]
[332525790,1721288034176,-500.0,0.00024383,2]
[332525791,1721288034186,-682.98,0.00024383,2]
[332525792,1721288034197,-911.72,0.00024383,2]
[332525793,1721288034209,-819.38,0.00024383,2]
[332525794,1721288034220,-500.0,0.00024383,2]
[332525795,1721288034231,-972.31,0.00024383,2]
[332525796,1721288034242,-500.0,0.00024383,2]
[332525797,1721288034251,-500.0,0.00024383,2]
[332525798,1721288034261,-1109.76,0.00024383,2]
[332525799,1721288034270,-500.0,0.00024383,2]
[332525800,1721288034280,-594.12790317,0.00024383,2]
[332525801,1721288034290,-500.0,0.00024383,2]
[332525802,1721288034299,-836.26,0.00024383,2]
[332525803,1721288034308,-500.0,0.00024383,2]
[332525804,1721288034319,-500.0,0.00024383,2]
[332525805,1721288034329,-544.15,0.00024383,2]
[332525806,1721288034339,-744.75,0.00024383,2]
[332525807,1721288034348,-659.68,0.00024383,2]
[332525808,1721288034359,-500.0,0.00024383,2]
[332525809,1721288034370,-1074.46,0.00024383,2]
[332525810,1721288034382,-918.1,0.00024383,2]
[332525811,1721288034393,-500.0,0.00024383,2]
[332525812,1721288034404,-587.83971243,0.00024383,2]
[332525813,1721288034414,-637.37,0.00024383,2]
[332525814,1721288034425,-500.0,0.00024383,2]
[332525815,1721288034435,-500.0,0.00024383,2]
[332525816,1721288034447,-941.47,0.00024383,2]
[332525817,1721288034460,-500.0,0.00024383,2]
[332525818,1721288034484,-1715.0,0.00024383,2]
[332525819,1721288034494,-808.27,0.00024383,2]
[332525820,1721288034504,-500.0,0.00024383,2]
[332525821,1721288034513,-702.02,0.00024383,2]
[332525822,1721288034524,-543.92,0.00024383,2]
[332525823,1721288034533,-500.0,0.00024383,2]
[332525824,1721288034542,-235.08200723,0.00024383,2]
[332525825,1721288034552,-508.59882085,0.00024383,2]
[332525826,1721288034562,-505.18646231,0.00024383,2]
[332525827,1721288034571,-500.0,0.00024383,2]
[332525828,1721288034581,-848.98,0.00024383,2]
[332525829,1721288034590,-500.0,0.00024383,2]
[332525830,1721288034599,-500.0,0.00024383,2]
[332525831,1721288034608,-833.62,0.00024383,2]
[332525832,1721288034618,-747.03,0.00024383,2]
[332525833,1721288034627,-694.12,0.00024383,2]
[332525834,1721288034636,-463.31480529,0.00024383,2]
[332525835,1721288034646,-1393.96,0.00024383,2]
[332525836,1721288034659,-923.3,0.00024383,2]
[332525837,1721288034669,-864.51,0.00024383,2]
[332525838,1721288034679,-874.63,0.00024383,2]
[332525839,1721288034688,-500.0,0.00024383,2]
[332525840,1721288034698,-572.13,0.00024383,2]
[332525841,1721288034708,-500.0,0.00024383,2]
[332525842,1721288034717,-500.0,0.00024383,2]
[332525843,1721288034728,-768.44,0.00024383,2]
[332525844,1721288034738,-919.94,0.00024383,2]
[332525845,1721288034748,-510.98757214,0.00024383,2]
[332525846,1721288034757,-500.0,0.00024383,2]
[332525847,1721288034767,-500.0,0.00024383,2]
[332525848,1721288034776,-500.0,0.00024383,2]
[332525849,1721288034785,-500.0,0.00024383,2]
[332525850,1721288034795,-500.0,0.00024383,2]
[332525851,1721288034804,-500.0,0.00024383,2]
[332525852,1721288034814,-500.0,0.00024383,2]
[332525853,1721288034824,-567.01,0.00024383,2]
[332525854,1721288034834,-750.97,0.00024383,2]
[332525855,1721288034846,-204.18673092,0.00024383,2]
[332525856,1721288034856,-500.0,0.00024383,2]
[332525857,1721288034866,-664.81,0.00024383,2]
[332525858,1721288034876,-500.0,0.00024383,2]
[332525859,1721288034888,-1439.37,0.00024383,2]
[332525860,1721288034899,-317.63704343,0.00024383,2]
[332525861,1721288034909,-356.68593433,0.00024383,2]
[332525862,1721288034919,-820.24,0.00024383,2]
[332525863,1721288034928,-500.0,0.00024383,2]
[332525864,1721288034938,-500.0,0.00024383,2]
[332525865,1721288034948,-500.0,0.00024383,2]
[332525866,1721288034958,-659.88,0.00024383,2]
[332525867,1721288034982,-500.0,0.00024383,2]
[332525868,1721288034991,-675.36,0.00024383,2]
[332525869,1721288035001,-500.0,0.00024383,2]
[332525870,1721288035010,-500.0,0.00024383,2]
[332525871,1721288035021,-1239.37,0.00024383,2]
[332525872,1721288035031,-587.43,0.00024383,2]
[332525873,1721288035040,-510.45288882,0.00024383,2]
[332525874,1721288035050,-500.0,0.00024383,2]
[332525875,1721288035059,-500.0,0.00024383,2]
[332525876,1721288035069,-500.0,0.00024383,2]
[332525877,1721288035078,-500.0,0.00024383,2]
[332525878,1721288035087,-1037.75,0.00024383,2]
[332525879,1721288035097,-1312.95,0.00024383,2]
[332525880,1721288035107,-500.0,0.00024383,2]
[332525881,1721288035117,-500.0,0.00024383,2]
[332525882,1721288035126,-1508.18,0.00024383,2]
[332525883,1721288035135,-759.36,0.00024383,2]
[332525884,1721288035145,-500.0,0.00024383,2]
[332525885,1721288035154,-589.69,0.00024383,2]
[332525886,1721288035163,-589.59,0.00024383,2]
[332525887,1721288035173,-500.0,0.00024383,2]
[332525888,1721288035182,-500.0,0.00024383,2]
[332525889,1721288035192,-500.0,0.00024383,2]
[332525890,1721288035202,-519.36,0.00024383,2]
[332525891,1721288035211,-500.0,0.00024383,2]
[332525892,1721288035221,-465.48,0.00024383,2]
[332525893,1721288035231,-500.0,0.00024383,2]
[332525894,1721288035240,-500.0,0.00024383,2]
[332525895,1721288035250,-500.0,0.00024383,2]
[332525896,1721288035259,-500.0,0.00024383,2]
[332525897,1721288035269,-1570.3,0.00024383,2]
[332525898,1721288035279,-500.0,0.00024383,2]
[332525899,1721288035288,-500.0,0.00024383,2]
[332525900,1721288035298,-500.0,0.00024383,2]
[332525901,1721288035307,-500.0,0.00024383,2]
[332525902,1721288035317,-684.5,0.00024383,2]
[332525903,1721288035326,-498.31277847,0.00024383,2]
[332525904,1721288035336,-500.0,0.00024383,2]
[332525905,1721288035345,-778.25,0.00024383,2]
[332525906,1721288035355,-1825.46,0.00024383,2]
[332525907,1721288035364,-500.0,0.00024383,2]
[332525908,1721288035374,-647.56,0.00024383,2]
[332525909,1721288035383,-1501.12,0.00024383,2]
[332525910,1721288035393,-500.0,0.00024383,2]
[332525911,1721288035402,-500.0,0.00024383,2]
[332525912,1721288035410,-500.0,0.00024383,2]
[332525913,1721288035420,-500.0,0.00024383,2]
[332525914,1721288035429,-649.76,0.00024383,2]
[332525915,1721288035439,-698.16,0.00024383,2]
[332525916,1721288035448,-500.0,0.00024383,2]
[332525917,1721288035465,-512.53908992,0.00024383,2]
[332525918,1721288035476,-500.0,0.00024383,2]
[332525919,1721288035602,-500.0,0.00024383,2]
[332525920,1721288035611,-838.21,0.00024383,2]
[332525921,1721288035621,-500.0,0.00024383,2]
[332525922,1721288035630,-500.0,0.00024383,2]
[332525923,1721288035640,-832.49,0.00024383,2]
[332525924,1721288035653,-500.0,0.00024383,2]
[332525925,1721288035663,-500.0,0.00024383,2]
[332525926,1721288035673,-635.85,0.00024383,2]
[332525927,1721288035683,-500.0,0.00024383,2]
[332525928,1721288035694,-500.0,0.00024383,2]
[332525929,1721288035704,-1002.59,0.00024383,2]
[332525930,1721288035728,-500.0,0.00024383,2]
[332525931,1721288035739,-500.0,0.00024383,2]
[332525932,1721288035749,-500.0,0.00024383,2]
[332525933,1721288035762,-500.0,0.00024383,2]
[332525934,1721288035772,-1264.99,0.00024383,2]
[332525935,1721288035782,-558.12,0.00024383,2]
[332525936,1721288035792,-667.65,0.00024383,2]
[332525937,1721288035801,-828.72,0.00024383,2]
[332525938,1721288035812,-935.3,0.00024383,2]
[332525939,1721288035821,-825.13,0.00024383,2]
[332525940,1721288035831,-500.0,0.00024383,2]
[332525941,1721288035840,-500.0,0.00024383,2]
[332525942,1721288035850,-499.9213292,0.00024383,2]
[332525943,1721288035859,-500.0,0.00024383,2]
[332525944,1721288035869,-500.0,0.00024383,2]
[332525945,1721288035879,-572.09,0.00024383,2]
[332525946,1721288035889,-500.0,0.00024383,2]
[332525947,1721288035900,-801.73,0.00024383,2]
[332525948,1721288035910,-501.08935122,0.00024383,2]
[332525949,1721288035920,-829.06,0.00024383,2]
[332525950,1721288035932,-500.0,0.00024383,2]
[332525951,1721288035941,-631.82,0.00024383,2]
[332525952,1721288035951,-500.48,0.00024383,2]
[332525953,1721288035966,-500.0,0.00024383,2]
[332525954,1721288035975,-1500.37,0.00024383,2]
[332525955,1721288035985,-500.0,0.00024383,2]
[332525956,1721288035996,-533.21,0.00024383,2]
[332525957,1721288036006,-993.33,0.00024383,2]
[332525958,1721288036017,-500.0,0.00024383,2]
[332525959,1721288036027,-500.0,0.00024383,2]
[332525960,1721288036037,-500.0,0.00024383,2]
[332525961,1721288036047,-614.68,0.00024383,2]
[332525962,1721288036057,-839.63,0.00024383,2]
[332525963,1721288036067,-1099.16,0.00024383,2]
[332525964,1721288036077,-2190.92,0.00024383,2]
[332525965,1721288036087,-500.0,0.00024383,2]
[332525966,1721288036097,-505.53555422,0.00024383,2]
[332525967,1721288036109,-769.89,0.00024383,2]
[332525968,1721288036119,-1387.79,0.00024383,2]
[332525969,1721288036129,-860.39,0.00024383,2]
[332525970,1721288036138,-916.75,0.00024383,2]
[332525971,1721288036148,-500.0,0.00024383,2]
[332525972,1721288036159,-500.0,0.00024383,2]
[332525973,1721288036170,-500.0,0.00024383,2]
[332525974,1721288036181,-621.09,0.00024383,2]
[332525975,1721288036191,-500.0,0.00024383,2]
[332525976,1721288036201,-2607.0,0.00024383,2]
[332525977,1721288036214,-500.0,0.00024383,2]